[Event "Live Chess"]
[Site "Chess.com"]
[Date "2023.05.21"]
[Round "-"]
[White "HoarseyHorsey"]
[Black "lHolyDiverl"]
[Result "1-0"]
[WhiteElo "1465"]
[BlackElo "555"]
[TimeControl "300"]
[EndTime "8:19:24 PDT"]
[Termination "HoarseyHorsey won on time"]

1. d4 {[%clk 0:04:58.5]} 1... d5 {[%clk 0:04:57.9]} 2. c4 {[%clk 0:04:57.4]}
2... Nf6 {[%clk 0:04:57.2]} 3. Nc3 {[%clk 0:04:49.6]} 3... Nc6 {[%clk
0:04:38.4]} 4. Nf3 {[%clk 0:04:46]} 4... Bf5 {[%clk 0:04:33.5]} 5. cxd5 {[%clk
0:04:33.3]} 5... Nxd5 {[%clk 0:04:29.8]} 6. Bg5 {[%clk 0:04:29]} 6... Nf6 {[%clk
0:04:21.1]} 7. e3 {[%clk 0:04:24.3]} 7... Nb4 {[%clk 0:04:19.5]} 8. Qa4+ {[%clk
0:04:19.7]} 8... Nc6 {[%clk 0:04:13.9]} 9. Bb5 {[%clk 0:04:17.2]} 9... a6 {[%clk
0:03:53.6]} 10. Bxc6+ {[%clk 0:04:15.8]} 10... bxc6 {[%clk 0:03:51.3]} 11. Qxc6+
{[%clk 0:04:07.8]} 11... Bd7 {[%clk 0:03:46.1]} 12. Qc4 {[%clk 0:03:58.5]} 12...
Be6 {[%clk 0:03:30.1]} 13. Qd3 {[%clk 0:03:51.4]} 13... g6 {[%clk 0:03:25.7]}
14. Ne4 {[%clk 0:03:41]} 14... Nxe4 {[%clk 0:03:12.5]} 15. Qxe4 {[%clk
0:03:39.3]} 15... Bg7 {[%clk 0:03:11.2]} 16. O-O {[%clk 0:03:32.4]} 16... O-O
{[%clk 0:03:09.1]} 17. Qd3 {[%clk 0:03:15.8]} 17... Rb8 {[%clk 0:03:05.7]} 18.
b3 {[%clk 0:03:10.3]} 18... a5 {[%clk 0:03:01.4]} 19. Rab1 {[%clk 0:03:01.9]}
19... Bf5 {[%clk 0:02:56.4]} 20. e4 {[%clk 0:02:59.9]} 20... Bg4 {[%clk
0:02:22.7]} 21. Rfd1 {[%clk 0:02:42.5]} 21... a4 {[%clk 0:01:48.7]} 22. e5
{[%clk 0:02:35.3]} 22... Bf5 {[%clk 0:01:34]} 23. Qc4 {[%clk 0:02:25.1]} 23...
Bxb1 {[%clk 0:01:31.2]} 24. Rxb1 {[%clk 0:02:25]} 24... axb3 {[%clk 0:01:25.3]}
25. axb3 {[%clk 0:02:23.2]} 25... h6 {[%clk 0:01:07.6]} 26. Be3 {[%clk
0:02:21.8]} 26... Qc8 {[%clk 0:00:54.8]} 27. Qc1 {[%clk 0:02:18.3]} 27... Rb7
{[%clk 0:00:35.7]} 28. Bxh6 {[%clk 0:02:15.4]} 28... Qb8 {[%clk 0:00:13.5]} 29.
Bxg7 {[%clk 0:02:13]} 29... Kxg7 {[%clk 0:00:12.7]} 30. Qe3 {[%clk 0:02:08.3]}
30... c6 {[%clk 0:00:07.8]} 31. h4 {[%clk 0:02:05.3]} 31... Rd8 {[%clk
0:00:05.5]} 32. h5 {[%clk 0:02:01.4]} 32... gxh5 {[%clk 0:00:03.2]} 33. Qg5+
{[%clk 0:01:57.8]} 1-0

[Event "Live Chess"]
[Site "Chess.com"]
[Date "2023.05.21"]
[Round "-"]
[White "NotHarryV"]
[Black "stevochess11"]
[Result "0-1"]
[WhiteElo "1506"]
[BlackElo "1669"]
[TimeControl "300"]
[EndTime "8:19:24 PDT"]
[Termination "stevochess11 won by resignation"]

1. d4 {[%clk 0:04:59.5]} 1... Nf6 {[%clk 0:04:55.9]} 2. c4 {[%clk 0:04:58.9]}
2... c5 {[%clk 0:04:54.1]} 3. d5 {[%clk 0:04:57.3]} 3... b5 {[%clk 0:04:52.3]}
4. cxb5 {[%clk 0:04:53]} 4... a6 {[%clk 0:04:51]} 5. Nc3 {[%clk 0:04:50.5]} 5...
e6 {[%clk 0:04:46.1]} 6. e4 {[%clk 0:04:48.5]} 6... exd5 {[%clk 0:04:29]} 7.
exd5 {[%clk 0:04:44.9]} 7... Bb7 {[%clk 0:04:25.4]} 8. Bg5 {[%clk 0:04:38]} 8...
d6 {[%clk 0:04:23]} 9. bxa6 {[%clk 0:04:09.8]} 9... Bxa6 {[%clk 0:04:19.4]} 10.
Bxa6 {[%clk 0:04:08.1]} 10... Nxa6 {[%clk 0:04:18.4]} 11. Qa4+ {[%clk
0:03:55.7]} 11... Qd7 {[%clk 0:04:11]} 12. Qxd7+ {[%clk 0:03:52.1]} 12... Nxd7
{[%clk 0:04:08.7]} 13. Bf6 {[%clk 0:03:52]} 13... gxf6 {[%clk 0:04:07]} 0-1

[Event "Live Chess"]
[Site "Chess.com"]
[Date "2023.05.21"]
[Round "-"]
[White "Ian-Morley"]
[Black "FlyingChessKestrel13"]
[Result "0-1"]
[WhiteElo "1112"]
[BlackElo "2060"]
[TimeControl "300"]
[EndTime "8:19:29 PDT"]
[Termination "FlyingChessKestrel13 won by resignation"]

1. e4 {[%clk 0:04:55.1]} 1... e6 {[%clk 0:04:57.9]} 2. d4 {[%clk 0:04:48.5]}
2... d5 {[%clk 0:04:56.7]} 3. exd5 {[%clk 0:04:47.3]} 3... exd5 {[%clk
0:04:55.4]} 4. Nf3 {[%clk 0:04:46.1]} 4... Nf6 {[%clk 0:04:54.6]} 5. Bf4 {[%clk
0:04:45.6]} 5... Bd6 {[%clk 0:04:53.2]} 6. Nc3 {[%clk 0:04:45]} 6... O-O {[%clk
0:04:51.8]} 7. Bxd6 {[%clk 0:04:44]} 7... Qxd6 {[%clk 0:04:50.7]} 8. Be2 {[%clk
0:04:43.6]} 8... Bg4 {[%clk 0:04:49.1]} 9. O-O {[%clk 0:04:42.3]} 9... c6 {[%clk
0:04:48.4]} 10. h3 {[%clk 0:04:41.5]} 10... Bh5 {[%clk 0:04:46.6]} 11. g3 {[%clk
0:04:39.7]} 11... Nbd7 {[%clk 0:04:44.9]} 12. g4 {[%clk 0:04:39]} 12... Bg6
{[%clk 0:04:43.8]} 13. Bd3 {[%clk 0:04:37.3]} 13... Ne4 {[%clk 0:04:42.6]} 14.
Nxe4 {[%clk 0:04:35.6]} 14... dxe4 {[%clk 0:04:40.8]} 15. Ne5 {[%clk 0:04:34.8]}
15... exd3 {[%clk 0:04:38.9]} 16. Nxd7 {[%clk 0:04:34.2]} 16... Qxd7 {[%clk
0:04:37.3]} 17. cxd3 {[%clk 0:04:33.7]} 17... Qxd4 {[%clk 0:04:35.9]} 18. Qb3
{[%clk 0:04:31]} 18... b6 {[%clk 0:04:31.5]} 19. Rac1 {[%clk 0:04:29.1]} 19...
Qxd3 {[%clk 0:04:29.4]} 20. Qxd3 {[%clk 0:04:28.1]} 20... Bxd3 {[%clk
0:04:27.9]} 21. Rfd1 {[%clk 0:04:27.4]} 21... Be4 {[%clk 0:04:26.2]} 22. Rd7
{[%clk 0:04:26]} 22... Bd5 {[%clk 0:04:25.2]} 23. b4 {[%clk 0:04:23.8]} 23... h6
{[%clk 0:04:23.8]} 24. a4 {[%clk 0:04:22.7]} 24... Rfd8 {[%clk 0:04:20.6]} 25.
Rxd8+ {[%clk 0:04:20.5]} 25... Rxd8 {[%clk 0:04:18.9]} 26. a5 {[%clk 0:04:19.6]}
26... bxa5 {[%clk 0:04:17.2]} 27. bxa5 {[%clk 0:04:19.2]} 27... Rb8 {[%clk
0:04:16.4]} 28. Re1 {[%clk 0:04:17.2]} 28... Rb5 {[%clk 0:04:14.2]} 29. Re7
{[%clk 0:04:16.5]} 29... Rxa5 {[%clk 0:04:13]} 30. Kh2 {[%clk 0:04:14.3]} 30...
Ra2 {[%clk 0:04:12]} 31. Kg3 {[%clk 0:04:13.8]} 31... a5 {[%clk 0:04:11.5]} 32.
f4 {[%clk 0:04:13.1]} 32... a4 {[%clk 0:04:10.3]} 33. g5 {[%clk 0:04:12.6]}
33... hxg5 {[%clk 0:04:09.3]} 34. Kg4 {[%clk 0:04:12.1]} 34... gxf4 {[%clk
0:04:07.6]} 35. Kxf4 {[%clk 0:04:11.3]} 35... a3 {[%clk 0:04:06.3]} 36. h4
{[%clk 0:04:10.9]} 36... Rf2+ {[%clk 0:04:03.9]} 37. Kg3 {[%clk 0:04:09.3]}
37... Rg2+ {[%clk 0:04:02.8]} 38. Kf4 {[%clk 0:04:08.1]} 38... a2 {[%clk
0:04:02.2]} 39. Ra7 {[%clk 0:04:06.8]} 39... Rg1 {[%clk 0:03:59.7]} 40. Rxa2
{[%clk 0:04:04.5]} 0-1

[Event "Live Chess"]
[Site "Chess.com"]
[Date "2023.05.21"]
[Round "-"]
[White "slava_ukr"]
[Black "grillage"]
[Result "1-0"]
[WhiteElo "2342"]
[BlackElo "1773"]
[TimeControl "300"]
[EndTime "8:19:39 PDT"]
[Termination "slava_ukr won by resignation"]

1. e4 {[%clk 0:04:58.7]} 1... d5 {[%clk 0:04:58.2]} 2. Nc3 {[%clk 0:04:57.7]}
2... dxe4 {[%clk 0:04:57]} 3. Nxe4 {[%clk 0:04:56.9]} 3... Bf5 {[%clk
0:04:56.3]} 4. Ng3 {[%clk 0:04:54.8]} 4... Bg6 {[%clk 0:04:55.8]} 5. h4 {[%clk
0:04:53.3]} 5... h6 {[%clk 0:04:50.1]} 6. Nf3 {[%clk 0:04:52.1]} 6... e6 {[%clk
0:04:46.5]} 7. Ne5 {[%clk 0:04:51.1]} 7... Bh7 {[%clk 0:04:44.8]} 8. Bc4 {[%clk
0:04:47.4]} 8... Nd7 {[%clk 0:04:41.5]} 9. Nf3 {[%clk 0:04:31.9]} 9... Ngf6
{[%clk 0:04:39.4]} 10. d4 {[%clk 0:04:30]} 10... Nb6 {[%clk 0:04:34.8]} 11. Bb3
{[%clk 0:04:28.6]} 11... Bd6 {[%clk 0:04:30.9]} 12. c3 {[%clk 0:04:25]} 12...
Bxg3 {[%clk 0:04:29.3]} 13. fxg3 {[%clk 0:04:23.9]} 13... Qd6 {[%clk 0:04:27.8]}
14. Bf4 {[%clk 0:04:22.5]} 14... Qd7 {[%clk 0:04:21.4]} 15. Qe2 {[%clk
0:04:19.2]} 15... Nbd5 {[%clk 0:04:19.3]} 16. Ne5 {[%clk 0:04:17.6]} 16... Qe7
{[%clk 0:04:11.7]} 17. Ba4+ {[%clk 0:04:06.9]} 17... Kf8 {[%clk 0:03:58.6]} 18.
O-O {[%clk 0:04:00.4]} 18... Bf5 {[%clk 0:03:36.6]} 19. Rf2 {[%clk 0:03:51.9]}
19... Ne4 {[%clk 0:03:04.5]} 20. Rff1 {[%clk 0:03:40.7]} 20... g5 {[%clk
0:03:02.4]} 21. Bc2 {[%clk 0:03:20.2]} 21... gxf4 {[%clk 0:02:22]} 22. Bxe4
{[%clk 0:03:18.6]} 22... Bxe4 {[%clk 0:02:18.4]} 23. Qxe4 {[%clk 0:03:17.4]}
23... Ke8 {[%clk 0:01:45.6]} 24. c4 {[%clk 0:03:15]} 24... f5 {[%clk 0:01:26.7]}
25. Qe2 {[%clk 0:03:01.2]} 25... Ne3 {[%clk 0:01:23.4]} 26. Rxf4 {[%clk
0:02:54.9]} 26... Ng4 {[%clk 0:01:09.3]} 27. Ng6 {[%clk 0:02:47.2]} 27... Qg7
{[%clk 0:01:08.6]} 28. Qxe6+ {[%clk 0:02:42.7]} 28... Kd8 {[%clk 0:01:06]} 29.
Nxh8 {[%clk 0:02:40.6]} 29... Qxh8 {[%clk 0:01:04.6]} 30. Qxf5 {[%clk
0:02:38.4]} 30... Rc8 {[%clk 0:00:52.8]} 31. Rxg4 {[%clk 0:02:34.7]} 1-0

[Event "Live Chess"]
[Site "Chess.com"]
[Date "2023.05.21"]
[Round "-"]
[White "AyannaTang"]
[Black "WilliamofOrange16th"]
[Result "0-1"]
[WhiteElo "230"]
[BlackElo "1849"]
[TimeControl "300"]
[EndTime "8:19:40 PDT"]
[Termination "WilliamofOrange16th won by checkmate"]

1. e4 {[%clk 0:04:59.3]} 1... d6 {[%clk 0:04:58.7]} 2. d3 {[%clk 0:04:54.9]}
2... Nf6 {[%clk 0:04:57.7]} 3. Bg5 {[%clk 0:04:48.5]} 3... e5 {[%clk 0:04:56.9]}
4. Bxf6 {[%clk 0:04:47.1]} 4... Qxf6 {[%clk 0:04:56.8]} 5. Ne2 {[%clk
0:04:44.6]} 5... c6 {[%clk 0:04:54.7]} 6. Ng3 {[%clk 0:04:43]} 6... h5 {[%clk
0:04:52.7]} 7. Nxh5 {[%clk 0:04:40]} 7... Qg6 {[%clk 0:04:46.3]} 8. Ng3 {[%clk
0:04:35.8]} 8... Bg4 {[%clk 0:04:44.6]} 9. Nf5 {[%clk 0:04:32.1]} 9... Bxf5
{[%clk 0:04:43.3]} 10. exf5 {[%clk 0:04:30.6]} 10... Qxf5 {[%clk 0:04:43.2]} 11.
Be2 {[%clk 0:04:26.7]} 11... d5 {[%clk 0:04:40]} 12. g3 {[%clk 0:04:21.4]} 12...
Bc5 {[%clk 0:04:38.5]} 13. h3 {[%clk 0:04:17.9]} 13... Qxf2+ {[%clk 0:04:34.7]}
14. Kd2 {[%clk 0:04:15]} 14... Qe3+ {[%clk 0:04:27.1]} 15. Ke1 {[%clk
0:04:13.1]} 15... Qxg3+ {[%clk 0:04:26.2]} 16. Kd2 {[%clk 0:04:10.9]} 16... Qf4+
{[%clk 0:04:22.9]} 17. Ke1 {[%clk 0:04:09.5]} 17... Bf2+ {[%clk 0:04:21.5]} 18.
Kf1 {[%clk 0:04:06]} 18... Be3+ {[%clk 0:04:20.8]} 19. Ke1 {[%clk 0:04:03.5]}
19... Qf2# {[%clk 0:04:19.9]} 0-1

[Event "Live Chess"]
[Site "Chess.com"]
[Date "2023.05.21"]
[Round "-"]
[White "AttackingSnowLeopard"]
[Black "Shepherds_Pie"]
[Result "1-0"]
[WhiteElo "2165"]
[BlackElo "1938"]
[TimeControl "300"]
[EndTime "8:19:41 PDT"]
[Termination "AttackingSnowLeopard won by resignation"]

1. d4 {[%clk 0:04:56.6]} 1... Nf6 {[%clk 0:04:58]} 2. c4 {[%clk 0:04:55.7]} 2...
c5 {[%clk 0:04:56.8]} 3. d5 {[%clk 0:04:54.8]} 3... e6 {[%clk 0:04:55.6]} 4. Nc3
{[%clk 0:04:53.3]} 4... exd5 {[%clk 0:04:54.4]} 5. cxd5 {[%clk 0:04:53.2]} 5...
d6 {[%clk 0:04:53.6]} 6. Nf3 {[%clk 0:04:52.7]} 6... g6 {[%clk 0:04:52.6]} 7. h3
{[%clk 0:04:50.7]} 7... Bg7 {[%clk 0:04:51.6]} 8. Bf4 {[%clk 0:04:49.7]} 8...
O-O {[%clk 0:04:49.7]} 9. e3 {[%clk 0:04:48]} 9... b6 {[%clk 0:04:46]} 10. Nd2
{[%clk 0:04:44.4]} 10... Ba6 {[%clk 0:04:43.8]} 11. Bxa6 {[%clk 0:04:40.3]}
11... Nxa6 {[%clk 0:04:42.7]} 12. Nc4 {[%clk 0:04:40]} 12... Nh5 {[%clk
0:04:30.5]} 13. Bh2 {[%clk 0:04:36.8]} 13... b5 {[%clk 0:04:17.4]} 14. Nxd6
{[%clk 0:04:30.7]} 14... Qa5 {[%clk 0:04:10.8]} 15. O-O {[%clk 0:04:26.3]} 15...
Nc7 {[%clk 0:04:04]} 16. a4 {[%clk 0:04:07.8]} 16... b4 {[%clk 0:03:57.6]} 17.
Ncb5 {[%clk 0:04:02.7]} 17... Nxb5 {[%clk 0:03:54]} 18. axb5 {[%clk 0:04:02.3]}
18... Qd8 {[%clk 0:03:52.5]} 19. Nc4 {[%clk 0:03:59.5]} 19... Qd7 {[%clk
0:03:43.8]} 20. b6 {[%clk 0:03:56.7]} 20... axb6 {[%clk 0:03:40.5]} 21. Rxa8
{[%clk 0:03:55.6]} 21... Rxa8 {[%clk 0:03:38.8]} 22. Nxb6 {[%clk 0:03:55.3]}
22... Qb7 {[%clk 0:03:37.1]} 23. Nxa8 {[%clk 0:03:54.8]} 23... Qxa8 {[%clk
0:03:36.1]} 24. d6 {[%clk 0:03:54.5]} 24... Qd8 {[%clk 0:03:34.5]} 25. d7 {[%clk
0:03:53.7]} 25... Nf6 {[%clk 0:03:33]} 26. Be5 {[%clk 0:03:40.5]} 26... Qxd7
{[%clk 0:03:27]} 27. Bxf6 {[%clk 0:03:38.9]} 27... Qxd1 {[%clk 0:03:24.6]} 28.
Rxd1 {[%clk 0:03:38.8]} 28... Bxf6 {[%clk 0:03:23.8]} 29. b3 {[%clk 0:03:38.5]}
29... Kf8 {[%clk 0:03:19.4]} 30. Rd5 {[%clk 0:03:36.9]} 30... Be7 {[%clk
0:03:17.7]} 31. Kf1 {[%clk 0:03:36.2]} 31... f5 {[%clk 0:03:16.2]} 32. Ke2
{[%clk 0:03:35.7]} 32... Kf7 {[%clk 0:03:15.2]} 33. Kd3 {[%clk 0:03:35.4]} 33...
Ke6 {[%clk 0:03:14.2]} 34. Kc4 {[%clk 0:03:35.1]} 34... g5 {[%clk 0:03:12.1]}
35. Rxc5 {[%clk 0:03:34.4]} 35... Bxc5 {[%clk 0:03:10.6]} 36. Kxc5 {[%clk
0:03:33.7]} 36... Ke5 {[%clk 0:03:09.4]} 37. Kxb4 {[%clk 0:03:32.6]} 37... Ke4
{[%clk 0:03:08.5]} 38. Kc4 {[%clk 0:03:32.1]} 38... f4 {[%clk 0:03:07.1]} 39.
exf4 {[%clk 0:03:30.8]} 1-0

[Event "Live Chess"]
[Site "Chess.com"]
[Date "2023.05.21"]
[Round "-"]
[White "PaulyD81"]
[Black "Dhaydon19"]
[Result "0-1"]
[WhiteElo "1145"]
[BlackElo "2689"]
[TimeControl "300"]
[EndTime "8:19:50 PDT"]
[Termination "Dhaydon19 won by checkmate"]

1. d4 {[%clk 0:04:59.1]} 1... c6 {[%clk 0:04:59]} 2. c4 {[%clk 0:04:46.2]} 2...
d5 {[%clk 0:04:58.3]} 3. e3 {[%clk 0:04:43]} 3... Nf6 {[%clk 0:04:57.4]} 4. Nc3
{[%clk 0:04:41.7]} 4... e6 {[%clk 0:04:56.6]} 5. Nf3 {[%clk 0:04:40.4]} 5... Bd6
{[%clk 0:04:56]} 6. Qc2 {[%clk 0:04:36.7]} 6... Nbd7 {[%clk 0:04:55.2]} 7. Be2
{[%clk 0:04:31]} 7... dxc4 {[%clk 0:04:53.5]} 8. Bxc4 {[%clk 0:04:28.7]} 8...
Qe7 {[%clk 0:04:53.1]} 9. O-O {[%clk 0:04:24.3]} 9... e5 {[%clk 0:04:52]} 10. a3
{[%clk 0:03:55.4]} 10... O-O {[%clk 0:04:49.7]} 11. b4 {[%clk 0:03:53.9]} 11...
a5 {[%clk 0:04:46.5]} 12. Rb1 {[%clk 0:03:44.9]} 12... axb4 {[%clk 0:04:44.3]}
13. axb4 {[%clk 0:03:42.8]} 13... e4 {[%clk 0:04:42.3]} 14. Ng5 {[%clk 0:03:26]}
14... Nb6 {[%clk 0:04:40.5]} 15. Ngxe4 {[%clk 0:03:16.2]} 15... Nxe4 {[%clk
0:04:38.5]} 16. Nxe4 {[%clk 0:03:13.7]} 16... Nxc4 {[%clk 0:04:37.6]} 17. Nxd6
{[%clk 0:03:00.3]} 17... Nxd6 {[%clk 0:04:36]} 18. Re1 {[%clk 0:02:47.5]} 18...
Bf5 {[%clk 0:04:33.7]} 19. e4 {[%clk 0:02:31.5]} 19... Bxe4 {[%clk 0:04:31.9]}
20. Rxe4 {[%clk 0:02:10.4]} 20... Qxe4 {[%clk 0:04:29.8]} 21. Qxe4 {[%clk
0:02:08]} 21... Nxe4 {[%clk 0:04:29.1]} 22. h3 {[%clk 0:01:50.4]} 22... Nc3
{[%clk 0:04:26.9]} 23. Rb2 {[%clk 0:01:44.8]} 23... Ra1 {[%clk 0:04:24.8]} 24.
Rc2 {[%clk 0:01:41.6]} 24... Rxc1+ {[%clk 0:04:24.2]} 25. Rxc1 {[%clk
0:01:39.8]} 25... Ne2+ {[%clk 0:04:23.8]} 26. Kf1 {[%clk 0:01:35.8]} 26... Nxc1
{[%clk 0:04:23.4]} 27. Ke1 {[%clk 0:01:32.7]} 27... Nd3+ {[%clk 0:04:21.8]} 28.
Kd2 {[%clk 0:01:31.6]} 28... Nxb4 {[%clk 0:04:21.4]} 29. Kc3 {[%clk 0:01:27]}
29... Nd5+ {[%clk 0:04:21]} 30. Kc4 {[%clk 0:01:24.9]} 30... b6 {[%clk
0:04:20.7]} 31. f3 {[%clk 0:01:20.9]} 31... Ra8 {[%clk 0:04:20.1]} 32. Kd3
{[%clk 0:01:11]} 32... Ra3+ {[%clk 0:04:18.9]} 33. Ke4 {[%clk 0:01:09.5]} 33...
g6 {[%clk 0:04:17.8]} 34. g4 {[%clk 0:00:57.5]} 34... Re3# {[%clk 0:04:15.9]}
0-1

[Event "Live Chess"]
[Site "Chess.com"]
[Date "2023.05.21"]
[Round "-"]
[White "whatnot126"]
[Black "lord_cll"]
[Result "1-0"]
[WhiteElo "2067"]
[BlackElo "1206"]
[TimeControl "300"]
[EndTime "8:19:56 PDT"]
[Termination "whatnot126 won by resignation"]

1. e4 {[%clk 0:04:59.1]} 1... d5 {[%clk 0:04:56.7]} 2. Nc3 {[%clk 0:04:57.8]}
2... d4 {[%clk 0:04:52.3]} 3. Nce2 {[%clk 0:04:56]} 3... e5 {[%clk 0:04:50.7]}
4. Nf3 {[%clk 0:04:55.1]} 4... Nc6 {[%clk 0:04:45]} 5. Ng3 {[%clk 0:04:52.9]}
5... Bg4 {[%clk 0:04:39.9]} 6. Bb5 {[%clk 0:04:50.3]} 6... Bd6 {[%clk
0:04:33.4]} 7. O-O {[%clk 0:04:46]} 7... Nf6 {[%clk 0:04:16.4]} 8. h3 {[%clk
0:04:39.8]} 8... Bd7 {[%clk 0:03:58.4]} 9. d3 {[%clk 0:04:38.5]} 9... O-O {[%clk
0:03:50.4]} 10. Bg5 {[%clk 0:04:37.1]} 10... h6 {[%clk 0:03:46.5]} 11. Bh4
{[%clk 0:04:36.3]} 11... a6 {[%clk 0:03:18.5]} 12. Bc4 {[%clk 0:04:34.9]} 12...
Be7 {[%clk 0:02:59.6]} 13. Nf5 {[%clk 0:04:29.1]} 13... Bxf5 {[%clk 0:02:53.6]}
14. exf5 {[%clk 0:04:27.7]} 14... Nd5 {[%clk 0:02:36.7]} 15. Bg3 {[%clk
0:04:18.1]} 15... Bf6 {[%clk 0:01:53]} 16. Nd2 {[%clk 0:04:11.3]} 16... b5
{[%clk 0:01:48]} 17. Bb3 {[%clk 0:04:10.1]} 17... a5 {[%clk 0:01:31.3]} 18. Qg4
{[%clk 0:04:06.3]} 18... a4 {[%clk 0:01:23.9]} 19. Bxd5 {[%clk 0:04:05.5]} 19...
Qxd5 {[%clk 0:01:17.6]} 20. Ne4 {[%clk 0:04:05]} 20... Be7 {[%clk 0:01:06.7]}
21. f6 {[%clk 0:04:02.7]} 1-0

[Event "Live Chess"]
[Site "Chess.com"]
[Date "2023.05.21"]
[Round "-"]
[White "ms_lilley"]
[Black "EdenHazard8"]
[Result "0-1"]
[WhiteElo "603"]
[BlackElo "1927"]
[TimeControl "300"]
[EndTime "8:20:03 PDT"]
[Termination "EdenHazard8 won by checkmate"]

1. d3 {[%clk 0:04:56.5]} 1... d5 {[%clk 0:04:58.1]} 2. d4 {[%clk 0:04:54.6]}
2... Nf6 {[%clk 0:04:56.5]} 3. h3 {[%clk 0:04:52.2]} 3... c5 {[%clk 0:04:55.8]}
4. c3 {[%clk 0:04:50.6]} 4... cxd4 {[%clk 0:04:54.9]} 5. cxd4 {[%clk 0:04:49.3]}
5... Nc6 {[%clk 0:04:54.8]} 6. a3 {[%clk 0:04:45.3]} 6... Qb6 {[%clk 0:04:53.6]}
7. b4 {[%clk 0:04:40.7]} 7... Bf5 {[%clk 0:04:51.6]} 8. Nf3 {[%clk 0:04:38.1]}
8... e6 {[%clk 0:04:50.3]} 9. Bb2 {[%clk 0:04:26.7]} 9... a5 {[%clk 0:04:49.3]}
10. Bc3 {[%clk 0:04:17.8]} 10... axb4 {[%clk 0:04:48.3]} 11. Bxb4 {[%clk
0:04:16.4]} 11... Bxb4+ {[%clk 0:04:46.3]} 12. Nbd2 {[%clk 0:04:12.7]} 12... Bc3
{[%clk 0:04:42]} 13. e4 {[%clk 0:04:07.4]} 13... Nxe4 {[%clk 0:04:40]} 14. Bd3
{[%clk 0:04:01.1]} 14... Nxd2 {[%clk 0:04:38.3]} 15. Nxd2 {[%clk 0:03:49.5]}
15... Bxd3 {[%clk 0:04:36.2]} 16. Qg4 {[%clk 0:03:38.8]} 16... Bxa1 {[%clk
0:04:32.1]} 17. Qxg7 {[%clk 0:03:36.4]} 17... Bc3 {[%clk 0:04:30.7]} 18. Qxh8+
{[%clk 0:03:34.5]} 18... Ke7 {[%clk 0:04:30.3]} 19. Qxa8 {[%clk 0:03:30.3]}
19... Qb1# {[%clk 0:04:29.8]} 0-1

[Event "Live Chess"]
[Site "Chess.com"]
[Date "2023.05.21"]
[Round "-"]
[White "Biranidun"]
[Black "Singapourfeuj"]
[Result "1-0"]
[WhiteElo "2519"]
[BlackElo "2182"]
[TimeControl "300"]
[EndTime "8:20:16 PDT"]
[Termination "Biranidun won by checkmate"]

1. e4 {[%clk 0:04:56]} 1... c5 {[%clk 0:04:58]} 2. Nf3 {[%clk 0:04:55]} 2... d6
{[%clk 0:04:57]} 3. d4 {[%clk 0:04:54.6]} 3... cxd4 {[%clk 0:04:56.2]} 4. Nxd4
{[%clk 0:04:54.5]} 4... Nf6 {[%clk 0:04:54.9]} 5. Nc3 {[%clk 0:04:53.9]} 5... a6
{[%clk 0:04:54.1]} 6. Be3 {[%clk 0:04:53]} 6... e5 {[%clk 0:04:52.4]} 7. Nb3
{[%clk 0:04:52.7]} 7... Be7 {[%clk 0:04:50.8]} 8. f3 {[%clk 0:04:52.3]} 8... Be6
{[%clk 0:04:49.6]} 9. Qd2 {[%clk 0:04:52]} 9... h5 {[%clk 0:04:47.9]} 10. Nd5
{[%clk 0:04:50.6]} 10... Nxd5 {[%clk 0:04:43.3]} 11. exd5 {[%clk 0:04:50.5]}
11... Bf5 {[%clk 0:04:42.2]} 12. O-O-O {[%clk 0:04:48.6]} 12... Nd7 {[%clk
0:04:40]} 13. Bd3 {[%clk 0:04:46.1]} 13... Bxd3 {[%clk 0:04:35.5]} 14. Qxd3
{[%clk 0:04:46]} 14... g6 {[%clk 0:04:33.5]} 15. Kb1 {[%clk 0:04:45.1]} 15...
Qc7 {[%clk 0:04:24.2]} 16. c4 {[%clk 0:04:42.5]} 16... Rc8 {[%clk 0:04:21.8]}
17. Rc1 {[%clk 0:04:41.5]} 17... O-O {[%clk 0:04:16.4]} 18. Nd2 {[%clk
0:04:38.1]} 18... f5 {[%clk 0:04:14.5]} 19. g4 {[%clk 0:04:23.2]} 19... hxg4
{[%clk 0:04:07.7]} 20. fxg4 {[%clk 0:04:22.4]} 20... Nc5 {[%clk 0:04:06.4]} 21.
Bxc5 {[%clk 0:04:21.2]} 21... Qxc5 {[%clk 0:04:04.6]} 22. gxf5 {[%clk
0:04:20.8]} 22... gxf5 {[%clk 0:04:02]} 23. Rhg1+ {[%clk 0:04:20]} 23... Kf7
{[%clk 0:03:59.1]} 24. Qxf5+ {[%clk 0:04:18.7]} 24... Bf6 {[%clk 0:03:58.2]} 25.
Qe6# {[%clk 0:04:15.6]} 1-0